[Event "WTCC-65 2018"]
[Site "Radebeul"]
[Date "2018.07.13"]
[Round "7"]
[White "Sandmeier, Toni"]
[Black "Berry, Stephen H"]
[Result "0-1"]
[ECO "A20"]
[WhiteElo "2159"]
[BlackElo "2298"]
[Annotator "NA"]
[PlyCount "88"]
[EventDate "2018.07.07"]
[EventType "team-tourn"]
[EventCountry "GER"]
[SourceTitle "playchess.com"]
[Source "ChessBase"]
[SourceQuality "1"]
[TimeControl "40/5400+30:1800+30"]

1. c4 {[%emt 0:00:00]} e5 {[%emt 0:00:00]} 2. g3 {[%emt 0:01:03]} d6 {[%emt 0:00:00]} 3. Bg2 {[%emt 0:00:27]} f5 {[%emt 0:00:08]} 4. Nc3 {[%emt 0:00:39]} Nf6 {[%emt 0:00:11]} 5. e3 {[%emt 0:00:42]} Be7 {[%emt 0:00:09]} 6. Nge2 {[%emt 0:00:06]} O-O {[%emt 0:00:56]} 7. O-O {[%emt 0:00:32]} c6 {[%emt 0:02:16]} 8. d4 {[%emt 0:01:03]} Na6 {[%emt 0:02:40]} 9. b3 {[%emt 0:02:55]} Nc7 {[%emt 0:08:12]} 10. Ba3 {[%emt 0:02:14]} e4 {[%emt 0:01:28]} 11. d5 {[%emt 0:06:12]} c5 {[%emt 0:04:21]} 12. b4 {[%emt 0:12:29]} b6 {[%emt 0:05:56]} 13. Rb1 {[%emt 0:06:13]} Ng4 {[%emt 0:05:04]} 14. Qb3 {[%emt 0:12:25]} Ne5 {[%emt 0:02:15]} 15. Rfd1 {[%emt 0:01:52]} Ba6 {[%emt 0:05:59]} 16. bxc5 {[%emt 0:05:25]} Bxc4 {[%emt 0:12:16]} 17. cxd6 {[%emt 0:01:09]} Bxd6 {[%emt 0:00:05]} 18. Qa4 {[%emt 0:04:42]} b5 {[%emt 0:02:46]} 19. Qa5 {[%emt 0:00:11]} Nd3 {[%emt 0:07:32]} 20. Bxd6 {[%emt 0:04:37]} Qxd6 {[%emt 0:00:04]} 21. Nf4 {[%emt 0:04:00]} a6 {[%emt 0:04:28]} 22. Nxd3 {[%emt 0:04:29]} Bxd3 {[%emt 0:00:46]} 23. Rbc1 {[%emt 0:00:17]} Rfc8 {[%emt 0:04:25]} 24. Bf1 {[%emt 0:08:27]} b4 {[%emt 0:10:43]} 25. Na4 {[%emt 0:06:15]} Nxd5 {[%emt 0:01:48]} 26. Rxc8+ {[%emt 0:02:08]} Rxc8 {[%emt 0:00:06]} 27. Nb2 {[%emt 0:05:57]} Nc3 {[%emt 0:05:21]} 28. Nxd3 {[%emt 0:05:01]} Nxd1 {[%emt 0:01:24]} 29. Qxf5 {[%emt 0:00:09]} Re8 {[%emt 0:03:24]} 30. Nc5 {[%emt 0:00:33]} Nc3 {[%emt 0:02:11]} 31. Nxa6 {[%emt 0:00:58]} Rf8 {[%emt 0:01:01]} 32. Qh3 {[%emt 0:01:55]} Kh8 {[%emt 0:02:18]} 33. g4 {[%emt 0:00:38]} Nd1 {[%emt 0:01:07]} 34. Qg3 {[%emt 0:00:22]} Qxg3+ {[%emt 0:00:35]} 35. hxg3 {[%emt 0:00:14]} Nxf2 {[%emt 0:00:14]} 36. Be2 {[%emt 0:00:18]} Nd3 {[%emt 0:00:28]} 37. Bd1 {[%emt 0:00:31]} Ra8 {[%emt 0:01:17]} 38. Nc7 {[%emt 0:00:11]} Rxa2 {[%emt 0:00:09]} 39. Bb3 {[%emt 0:00:20]} Re2 {[%emt 0:01:51]} 40. Nd5 {[%emt 0:00:32]} Rb2 {[%emt 0:00:45]} 41. Ba4 {[%emt 0:31:16]} b3 {[%emt 0:32:14]} 42. Nc3 {[%emt 0:00:50]} Nc5 {[%emt 0:00:00]} 43. Bc6 {[%emt 0:00:00]} Rc2 {[%emt 0:00:00]} 44. Nxe4 {[%emt 0:00:00]} b2 {[%emt 0:00:00]} 0-1

[Event "WTCC-65 2018"]
[Site "Radebeul"]
[Date "2018.07.13"]
[Round "7"]
[White "Gneiss, Karl"]
[Black "Shushpanov, Vladimir"]
[Result "0-1"]
[ECO "B07"]
[WhiteElo "2090"]
[BlackElo "2198"]
[Annotator "NA"]
[PlyCount "98"]
[EventDate "2018.07.07"]
[EventType "team-tourn"]
[EventCountry "GER"]
[SourceTitle "playchess.com"]
[Source "ChessBase"]
[SourceQuality "1"]
[TimeControl "40/5400+30:1800+30"]

1. e4 {[%emt 0:00:06]} d6 {[%emt 0:00:00]} 2. d4 {[%emt 0:00:30]} Nf6 {[%emt 0:00:00]} 3. Nc3 {[%emt 0:00:07]} c6 {[%emt 0:00:10]} 4. Nf3 {[%emt 0:01:15]} Bg4 {[%emt 0:00:14]} 5. Be2 {[%emt 0:00:27]} e6 {[%emt 0:00:22]} 6. O-O {[%emt 0:00:47]} Be7 {[%emt 0:00:30]} 7. Be3 {[%emt 0:00:37]} O-O {[%emt 0:00:31]} 8. Qd2 {[%emt 0:01:25]} d5 {[%emt 0:00:23]} 9. exd5 {[%emt 0:03:20]} cxd5 {[%emt 0:00:19]} 10. h3 {[%emt 0:01:32]} Bh5 {[%emt 0:02:44]} 11. Ne5 {[%emt 0:02:13]} Bxe2 {[%emt 0:00:23]} 12. Qxe2 {[%emt 0:03:13]} Nc6 {[%emt 0:00:53]} 13. Rfd1 {[%emt 0:08:45]} Qb6 {[%emt 0:06:10]} 14. a3 {[%emt 0:05:47]} Rac8 {[%emt 0:02:46]} 15. Qd3 {[%emt 0:04:18]} Rfd8 {[%emt 0:03:19]} 16. b4 {[%emt 0:05:24]} Qc7 {[%emt 0:04:12]} 17. Ne2 {[%emt 0:08:52]} a6 {[%emt 0:07:06]} 18. Nxc6 {[%emt 0:04:47]} Qxc6 {[%emt 0:00:17]} 19. Rdc1 {[%emt 0:00:55]} Qc4 {[%emt 0:01:54]} 20. Qxc4 {[%emt 0:02:02]} Rxc4 {[%emt 0:00:16]} 21. f3 {[%emt 0:02:24]} Ne8 {[%emt 0:01:06]} 22. Kf2 {[%emt 0:02:03]} Rdc8 {[%emt 0:00:45]} 23. c3 {[%emt 0:00:06]} Nd6 {[%emt 0:00:38]} 24. Bf4 {[%emt 0:04:14]} Nb5 {[%emt 0:05:28]} 25. Bd2 {[%emt 0:01:04]} h6 {[%emt 0:00:16]} 26. a4 {[%emt 0:02:20]} Nd6 {[%emt 0:00:11]} 27. Bf4 {[%emt 0:01:25]} Nf5 {[%emt 0:02:48]} 28. g3 {[%emt 0:06:32]} Bg5 {[%emt 0:01:13]} 29. Bxg5 {[%emt 0:02:34]} hxg5 {[%emt 0:00:03]} 30. Ke1 {[%emt 0:02:15]} Kf8 {[%emt 0:03:53]} 31. Kd2 {[%emt 0:00:02]} Ke7 {[%emt 0:00:19]} 32. Rab1 {[%emt 0:05:54]} f6 {[%emt 0:01:31]} 33. Rh1 {[%emt 0:04:58]} e5 {[%emt 0:01:54]} 34. dxe5 {[%emt 0:06:33]} fxe5 {[%emt 0:00:11]} 35. Rbc1 {[%emt 0:00:51]} a5 {[%emt 0:07:24]} 36. bxa5 {[%emt 0:01:59]} Rxa4 {[%emt 0:00:22]} 37. Ra1 {[%emt 0:00:25]} Rac4 {[%emt 0:02:38]} 38. Rhb1 {[%emt 0:00:37]} R8c7 {[%emt 0:03:37]} 39. Rb5 {[%emt 0:02:01]} d4 {[%emt 0:01:22]} 40. cxd4 {[%emt 0:04:24]} Nxd4 {[%emt 0:00:53]} 41. Rxe5+ {[%emt 0:05:43]} Kf6 {[%emt 0:00:26]} 42. Re3 {[%emt 0:00:24]} Nc2 {[%emt 0:02:00]} 43. Ra2 {[%emt 0:03:23]} Nxe3 {[%emt 0:01:16]} 44. Kxe3 {[%emt 0:00:02]} Rc2 {[%emt 0:00:20]} 45. Ra4 {[%emt 0:05:46]} Re7+ 46. Re4 Rxe4+ {[%emt 0:02:11]} 47. fxe4 {[%emt 0:00:02]} Ra2 {[%emt 0:00:21]} 48. Nc3 {[%emt 0:03:03]} Rxa5 {[%emt 0:00:20]} 49. Kd4 {[%emt 0:00:01]} Ke6 {[%emt 0:00:39]} 0-1

[Event "WTCC-65 2018"]
[Site "Radebeul"]
[Date "2018.07.13"]
[Round "7"]
[White "Gundersen, Helge"]
[Black "Bernard, Christophe"]
[Result "1/2-1/2"]
[ECO "A01"]
[WhiteElo "2089"]
[BlackElo "2253"]
[Annotator "NA"]
[PlyCount "126"]
[EventDate "2018.07.07"]
[EventType "team-tourn"]
[EventCountry "GER"]
[SourceTitle "playchess.com"]
[Source "ChessBase"]
[SourceQuality "1"]
[TimeControl "40/5400+30:1800+30"]

1. b3 {[%emt 0:00:00]} e5 {[%emt 0:00:28]} 2. Bb2 {[%emt 0:00:00]} d6 {[%emt 0:00:09]} 3. e3 {[%emt 0:00:16]} Nf6 {[%emt 0:00:25]} 4. d4 {[%emt 0:06:28]} Nbd7 {[%emt 0:15:02]} 5. Nc3 {[%emt 0:07:28]} c6 {[%emt 0:06:36]} 6. dxe5 {[%emt 0:11:02]} dxe5 {[%emt 0:00:27]} 7. Nf3 {[%emt 0:00:56]} Be7 {[%emt 0:07:58]} 8. Be2 {[%emt 0:11:28]} O-O {[%emt 0:00:30]} 9. O-O {[%emt 0:00:07]} Qc7 {[%emt 0:00:11]} 10. Nd2 {[%emt 0:10:27]} Rd8 {[%emt 0:03:52]} 11. Bf3 {[%emt 0:02:28]} Nf8 {[%emt 0:01:16]} 12. Qe2 {[%emt 0:01:46]} Ng6 {[%emt 0:00:31]} 13. g3 {[%emt 0:04:45]} Be6 {[%emt 0:06:58]} 14. Rfd1 {[%emt 0:02:03]} Nd5 {[%emt 0:05:17]} 15. e4 Nxc3 {[%emt 0:08:34]} 16. Bxc3 {[%emt 0:02:59]} b5 {[%emt 0:00:09]} 17. Nf1 {[%emt 0:00:57]} Bc5 {[%emt 0:00:37]} 18. Rxd8+ {[%emt 0:06:35]} Rxd8 {[%emt 0:02:04]} 19. a4 {[%emt 0:00:27]} b4 {[%emt 0:01:10]} 20. Bd2 {[%emt 0:01:23]} Bd4 {[%emt 0:00:13]} 21. Rd1 {[%emt 0:00:44]} c5 {[%emt 0:00:30]} 22. Ne3 {[%emt 0:02:32]} Ne7 {[%emt 0:00:50]} 23. Bg4 {[%emt 0:01:53]} Qd7 {[%emt 0:12:51]} 24. Bxe6 {[%emt 0:02:13]} Qxe6 {[%emt 0:00:03]} 25. Nc4 {[%emt 0:04:41]} f5 {[%emt 0:00:35]} 26. Bg5 {[%emt 0:05:43]} fxe4 {[%emt 0:01:48]} 27. Bxe7 {[%emt 0:00:13]} Qxe7 {[%emt 0:00:02]} 28. Nd2 {[%emt 0:00:27]} h6 {[%emt 0:05:18]} 29. Nxe4 {[%emt 0:00:48]} Kh8 {[%emt 0:00:11]} 30. Kg2 {[%emt 0:00:30]} Rf8 {[%emt 0:00:23]} 31. Rd3 {[%emt 0:00:49]} Qd7 {[%emt 0:02:17]} 32. Rf3 {[%emt 0:04:47]} Rc8 {[%emt 0:02:49]} 33. Nd2 {[%emt 0:05:16]} Qc6 {[%emt 0:00:41]} 34. Qe4 {[%emt 0:00:21]} Qxe4 {[%emt 0:01:24]} 35. Nxe4 {[%emt 0:00:01]} c4 {[%emt 0:00:13]} 36. g4 {[%emt 0:02:11]} cxb3 {[%emt 0:00:21]} 37. cxb3 {[%emt 0:00:03]} Rc1 {[%emt 0:00:52]} 38. Rd3 {[%emt 0:01:15]} Re1 {[%emt 0:01:40]} 39. Kf3 {[%emt 0:00:23]} Kg8 {[%emt 0:00:17]} 40. h4 {[%emt 0:01:09]} Kf7 {[%emt 0:00:24]} 41. Ng3 {[%emt 0:18:48]} Ke6 {[%emt 0:01:38]} 42. Kg2 {[%emt 0:00:49]} Kd5 {[%emt 0:10:21]} 43. f3 {[%emt 0:07:31] [#]} g6 $1 {[%emt 0:07:17]} 44. h5 gxh5 {[%emt 0:00:06]} 45. gxh5 {[%emt 0:00:27]} Rg1+ {[%emt 0:00:48]} 46. Kh3 {[%emt 0:00:09] [#]} Rc1 $1 {[%emt 0:00:49]} 47. Nf5 {[%emt 0:01:27]} Rc3 {[%emt 0:00:11]} 48. Ne3+ {[%emt 0:00:52]} Ke6 {[%emt 0:03:32]} 49. Rxc3 {[%emt 0:00:03]} bxc3 {[%emt 0:03:06]} 50. Nc2 {[%emt 0:00:00]} Kf5 {[%emt 0:00:18]} 51. Kg3 {[%emt 0:02:47]} a6 {[%emt 0:00:14]} 52. b4 {[%emt 0:00:15]} Ba7 {[%emt 0:00:16]} 53. b5 {[%emt 0:00:21]} axb5 {[%emt 0:00:06]} 54. axb5 Kg5 {[%emt 0:02:58]} 55. Ne1 {[%emt 0:02:39]} Bb8 {[%emt 0:03:05]} 56. b6 {[%emt 0:01:03]} Kxh5 {[%emt 0:00:32]} 57. Kh3 {[%emt 0:01:16]} Kg5 {[%emt 0:00:16]} 58. Kg3 {[%emt 0:00:42]} h5 {[%emt 0:02:17]} 59. Kf2 {[%emt 0:00:59]} h4 {[%emt 0:00:37]} 60. Nc2 {[%emt 0:00:27]} Kf4 {[%emt 0:04:08]} 61. Nb4 {[%emt 0:00:45]} Kg5 {[%emt 0:02:55]} 62. Kg2 {[%emt 0:00:45]} Kh5 {[%emt 0:02:53]} 63. Kh3 {[%emt 0:00:07]} Kg5 {[%emt 0:00:18]} 1/2-1/2

[Event "WTCC-65 2018"]
[Site "Radebeul"]
[Date "2018.07.13"]
[Round "7"]
[White "Etzold, Ernst-Walter"]
[Black "Malmdin, Nils-Ake"]
[Result "0-1"]
[ECO "A46"]
[WhiteElo "2088"]
[BlackElo "2138"]
[Annotator "NA"]
[PlyCount "74"]
[EventDate "2018.07.07"]
[EventType "team-tourn"]
[EventCountry "GER"]
[SourceTitle "playchess.com"]
[Source "ChessBase"]
[SourceQuality "1"]
[TimeControl "40/5400+30:1800+30"]

1. d4 {[%emt 0:00:00]} Nf6 {[%emt 0:00:04]} 2. Nf3 {[%emt 0:00:00]} e6 {[%emt 0:00:23]} 3. g3 {[%emt 0:02:10]} b6 {[%emt 0:03:13]} 4. Bg2 {[%emt 0:00:14]} Bb7 {[%emt 0:00:09]} 5. O-O {[%emt 0:00:17]} d6 {[%emt 0:04:32]} 6. c4 {[%emt 0:02:03]} Nbd7 {[%emt 0:01:25]} 7. Nc3 {[%emt 0:01:27]} Be7 {[%emt 0:01:09]} 8. Qc2 {[%emt 0:01:47]} c5 {[%emt 0:07:28]} 9. d5 {[%emt 0:11:56]} exd5 {[%emt 0:14:49]} 10. Nh4 {[%emt 0:00:42]} g6 {[%emt 0:01:13]} 11. cxd5 {[%emt 0:00:32]} O-O {[%emt 0:00:43]} 12. a4 {[%emt 0:11:15]} Re8 {[%emt 0:01:35]} 13. f4 {[%emt 0:01:24]} Ng4 {[%emt 0:05:12]} 14. Bf3 {[%emt 0:01:40]} Bxh4 {[%emt 0:03:58]} 15. Bxg4 {[%emt 0:00:02]} Bf6 {[%emt 0:00:15]} 16. Bf3 {[%emt 0:07:13]} Bd4+ {[%emt 0:22:59]} 17. Kg2 {[%emt 0:00:11]} a6 {[%emt 0:00:16]} 18. Nd1 {[%emt 0:05:31]} f5 {[%emt 0:01:18]} 19. h4 {[%emt 0:03:06]} Qe7 {[%emt 0:03:00]} 20. h5 {[%emt 0:00:34]} Qf7 {[%emt 0:00:29]} 21. hxg6 {[%emt 0:18:09]} hxg6 {[%emt 0:00:03]} 22. e3 {[%emt 0:03:37]} Bg7 {[%emt 0:02:52]} 23. Qb3 {[%emt 0:04:06]} Rab8 {[%emt 0:01:33]} 24. Nc3 {[%emt 0:00:38]} Ba8 {[%emt 0:03:48]} 25. Bd2 {[%emt 0:00:45]} Nf6 {[%emt 0:01:13]} 26. Rad1 {[%emt 0:01:00]} Qd7 {[%emt 0:02:36]} 27. Qc2 {[%emt 0:00:34]} b5 {[%emt 0:00:54]} 28. axb5 {[%emt 0:00:30]} axb5 {[%emt 0:00:01]} 29. Bc1 {[%emt 0:00:03]} b4 {[%emt 0:00:39]} 30. Ne2 {[%emt 0:00:33]} Qf7 {[%emt 0:06:50]} 31. Qd3 {[%emt 0:02:31]} Rb6 {[%emt 0:02:20]} 32. Rh1 {[%emt 0:01:08]} Bb7 {[%emt 0:00:27]} 33. Ng1 {[%emt 0:00:25]} Ba6 {[%emt 0:01:10]} 34. Qd2 {[%emt 0:01:08]} Ng4 {[%emt 0:02:25]} 35. e4 {[%emt 0:07:15]} Bd4 {[%emt 0:01:07]} 36. Bxg4 {[%emt 0:00:18]} fxg4 {[%emt 0:00:09]} 37. Re1 {[%emt 0:00:23]} Rxe4 {[%emt 0:00:51]} 0-1

[Event "WTCC-65 2018"]
[Site "Radebeul"]
[Date "2018.07.13"]
[Round "7"]
[White "Sobeck, Guenter"]
[Black "Wahlbom, Magnus"]
[Result "1/2-1/2"]
[ECO "A01"]
[WhiteElo "2033"]
[BlackElo "2172"]
[Annotator "NA"]
[PlyCount "131"]
[EventDate "2018.07.07"]
[EventType "team-tourn"]
[EventCountry "GER"]
[SourceTitle "playchess.com"]
[Source "ChessBase"]
[SourceQuality "1"]
[TimeControl "40/5400+30:1800+30"]

1. b3 {[%emt 0:00:00]} e5 {[%emt 0:00:48]} 2. Bb2 {[%emt 0:00:00]} d6 {[%emt 0:00:05]} 3. d4 {[%emt 0:00:10]} Nd7 {[%emt 0:05:46]} 4. Nc3 {[%emt 0:01:11]} g6 {[%emt 0:07:07]} 5. e4 {[%emt 0:00:58]} Bg7 {[%emt 0:07:07]} 6. Nf3 {[%emt 0:00:25]} exd4 {[%emt 0:01:10]} 7. Nxd4 {[%emt 0:01:02]} Ngf6 {[%emt 0:00:57]} 8. Qd2 {[%emt 0:01:19]} O-O {[%emt 0:04:28]} 9. O-O-O {[%emt 0:00:12]} Nc5 {[%emt 0:00:45]} 10. f3 {[%emt 0:00:19]} a6 {[%emt 0:05:03]} 11. Kb1 {[%emt 0:00:29]} Bd7 {[%emt 0:03:33]} 12. g4 {[%emt 0:00:24]} b5 {[%emt 0:01:21]} 13. g5 {[%emt 0:04:23]} Nh5 {[%emt 0:09:18]} 14. Nce2 {[%emt 0:00:32]} Ne6 {[%emt 0:06:29]} 15. Nxe6 {[%emt 0:01:29]} fxe6 {[%emt 0:00:15]} 16. Ng3 {[%emt 0:04:49]} Bxb2 {[%emt 0:02:50]} 17. Kxb2 {[%emt 0:01:09]} Nf4 {[%emt 0:01:24]} 18. h4 {[%emt 0:10:50]} e5 {[%emt 0:00:54]} 19. Ne2 {[%emt 0:12:29]} Be6 {[%emt 0:02:33]} 20. Nxf4 {[%emt 0:02:36]} Rxf4 {[%emt 0:00:13]} 21. Be2 {[%emt 0:00:30]} Qe7 {[%emt 0:05:58]} 22. Rdg1 {[%emt 0:01:04]} Bf7 {[%emt 0:10:42]} 23. h5 {[%emt 0:16:58]} gxh5 {[%emt 0:06:38]} 24. Rxh5 {[%emt 0:00:54]} Kg7 {[%emt 0:03:55]} 25. Rh6 {[%emt 0:02:38]} Bg6 {[%emt 0:00:30]} 26. Qd5 {[%emt 0:03:30]} Rb8 {[%emt 0:02:14]} 27. Qc6 {[%emt 0:08:35]} Rb6 {[%emt 0:03:05]} 28. Qd5 {[%emt 0:00:16]} c6 {[%emt 0:00:48]} 29. Qd2 {[%emt 0:00:21]} b4 {[%emt 0:01:41]} 30. Qe3 {[%emt 0:04:27]} c5 {[%emt 0:01:55]} 31. Bc4 {[%emt 0:00:21]} a5 {[%emt 0:00:16]} 32. Qd3 {[%emt 0:02:53]} Rb8 {[%emt 0:00:26]} 33. Rg3 {[%emt 0:00:58]} Qd7 {[%emt 0:00:27]} 34. Rh1 {[%emt 0:00:48]} Rd8 {[%emt 0:00:33]} 35. Qe2 {[%emt 0:00:38]} Kh8 {[%emt 0:02:27]} 36. Rgh3 {[%emt 0:08:55]} Kg7 {[%emt 0:02:20]} 37. Rh6 {[%emt 0:04:46]} Kf8 {[%emt 0:01:15]} 38. R1h3 {[%emt 0:03:14]} Qg7 {[%emt 0:00:21]} 39. Qh2 {[%emt 0:00:22]} Rd7 {[%emt 0:00:25]} 40. Bd5 {[%emt 0:01:08]} Re7 {[%emt 0:00:17]} 41. Qe2 {[%emt 0:02:37]} Rc7 {[%emt 0:13:39]} 42. Qb5 {[%emt 0:01:38]} Ke7 {[%emt 0:03:55]} 43. Qxa5 {[%emt 0:02:19]} Kd7 {[%emt 0:00:12]} 44. Qb5+ {[%emt 0:00:59]} Ke7 {[%emt 0:00:36]} 45. Qb8 {[%emt 0:00:20]} Kd7 {[%emt 0:00:14]} 46. Qb5+ {[%emt 0:02:07]} Ke7 {[%emt 0:00:10]} 47. Qb6 {[%emt 0:02:01]} Kd7 {[%emt 0:00:16]} 48. c3 {[%emt 0:01:01]} bxc3+ {[%emt 0:03:30]} 49. Kxc3 {[%emt 0:00:11]} Rf8 {[%emt 0:00:30]} 50. a4 {[%emt 0:00:24]} Qe7 {[%emt 0:00:52]} 51. Rg3 {[%emt 0:06:31]} Qd8 {[%emt 0:01:17]} 52. Qb5+ {[%emt 0:00:32]} Ke7 {[%emt 0:00:09]} 53. Rgh3 {[%emt 0:00:24]} Rh8 {[%emt 0:00:25]} 54. a5 {[%emt 0:02:20]} Qf8 {[%emt 0:02:53]} 55. Qb6 $18 {[%emt 0:01:11]} Kd7 {[%emt 0:00:32]} 56. Be6+ {[%emt 0:06:09]} Kxe6 57. Qxc7 Qf4 {[%emt 0:00:25]} 58. Kc2 {[%emt 0:01:24]} Qe3 {[%emt 0:00:57]} 59. Qb7 {[%emt 0:00:39]} Qe2+ {[%emt 0:00:59]} 60. Kb1 {[%emt 0:00:13]} Qe1+ {[%emt 0:01:12]} 61. Kc2 {[%emt 0:00:16]} Qf2+ {[%emt 0:01:17]} 62. Kd3 {[%emt 0:02:26]} Qf1+ {[%emt 0:00:37]} 63. Ke3 {[%emt 0:00:27]} Qe1+ {[%emt 0:00:13]} 64. Kd3 {[%emt 0:00:02]} Qf1+ {[%emt 0:00:23]} 65. Kd2 {[%emt 0:00:13]} Qf2+ {[%emt 0:00:16] Qb6 Qe2+} 66. Kc3 {Qxe4 fxe4} 1/2-1/2

[Event "WTCC-65 2018"]
[Site "Radebeul"]
[Date "2018.07.13"]
[Round "7"]
[White "Staub, Gerhard"]
[Black "Emerson, Roger"]
[Result "1/2-1/2"]
[ECO "B13"]
[WhiteElo "2013"]
[BlackElo "2211"]
[Annotator "NA"]
[PlyCount "34"]
[EventDate "2018.07.07"]
[EventType "team-tourn"]
[EventCountry "GER"]
[SourceTitle "playchess.com"]
[Source "ChessBase"]
[SourceQuality "1"]
[TimeControl "40/5400+30:1800+30"]

1. e4 {[%emt 0:00:00]} c6 {[%emt 0:00:57]} 2. d4 {[%emt 0:00:00]} d5 {[%emt 0:00:07]} 3. exd5 {[%emt 0:00:05]} cxd5 {[%emt 0:00:08]} 4. Bd3 {[%emt 0:00:08]} Nc6 {[%emt 0:00:35]} 5. c3 {[%emt 0:00:07]} Qc7 {[%emt 0:00:27]} 6. Ne2 {[%emt 0:00:12]} e5 {[%emt 0:01:28]} 7. dxe5 {[%emt 0:02:56]} Nxe5 {[%emt 0:00:09]} 8. Bb5+ {[%emt 0:03:22]} Bd7 {[%emt 0:00:58]} 9. Bxd7+ {[%emt 0:01:10]} Qxd7 {[%emt 0:00:18]} 10. Bf4 {[%emt 0:02:30]} Ng6 {[%emt 0:03:41]} 11. O-O {[%emt 0:02:38]} Nxf4 {[%emt 0:04:45]} 12. Nxf4 {[%emt 0:00:10]} Nf6 {[%emt 0:00:06]} 13. Qd4 {[%emt 0:10:26]} Be7 {[%emt 0:04:02]} 14. Rd1 {[%emt 0:07:04]} O-O {[%emt 0:01:52]} 15. Nxd5 {[%emt 0:04:36]} Nxd5 {[%emt 0:10:42]} 16. Qxd5 {[%emt 0:01:24]} Qxd5 {[%emt 0:07:20]} 17. Rxd5 {[%emt 0:00:07]} Rad8 {[%emt 0:04:06]} 1/2-1/2

[Event "WTCC-65 2018"]
[Site "Radebeul"]
[Date "2018.07.13"]
[Round "7"]
[White "Scovitin, Albert"]
[Black "Schulze, Ulrich"]
[Result "0-1"]
[ECO "A22"]
[WhiteElo "2004"]
[BlackElo "2313"]
[Annotator "NA"]
[PlyCount "116"]
[EventDate "2018.07.07"]
[EventType "team-tourn"]
[EventCountry "GER"]
[SourceTitle "playchess.com"]
[Source "ChessBase"]
[SourceQuality "1"]
[TimeControl "40/5400+30:1800+30"]

1. c4 {[%emt 0:00:00]} e5 {[%emt 0:00:00]} 2. Nc3 {[%emt 0:00:00]} Nf6 {[%emt 0:00:08]} 3. g3 {[%emt 0:00:17]} Bb4 {[%emt 0:01:00]} 4. Bg2 {[%emt 0:00:21]} Bxc3 {[%emt 0:01:45]} 5. bxc3 {[%emt 0:00:29]} O-O {[%emt 0:01:56]} 6. d3 {[%emt 0:00:23]} Re8 {[%emt 0:02:06]} 7. e4 {[%emt 0:03:02]} c6 {[%emt 0:03:11] A21: English Opening: 1...e5 2 Nc3} 8. Ne2 {[%emt 0:04:22]} (8. Nf3 d5 9. cxd5 cxd5 10. exd5 Nxd5 11. Qc2 Qc7 12. O-O Qxc3 13. Qxc3 Nxc3 14. Bb2 Na4 15. Bxe5 {½-½ (33) Giri,A (2778)-Aronian,L (2781) London 2015 CBM 170 [Sagar Shah/CB Website]}) 8... d5 {[%emt 0:01:10]} 9. cxd5 {[%emt 0:04:34]} cxd5 {[%emt 0:00:06]} 10. exd5 {[%emt 0:00:18]} Nxd5 {[%emt 0:00:12]} 11. h3 {[%emt 0:00:09]} Nc6 {[%emt 0:01:43]} 12. O-O {[%emt 0:00:16]} Bf5 {[%emt 0:04:13]} 13. d4 {[%emt 0:02:23]} exd4 {[%emt 0:04:11]} 14. cxd4 {[%emt 0:13:24]} Qd7 $146 {[%emt 0:07:58]} ({Predecessor:} 14... Be4 15. f3 {0-1 (32) Cruz,F (2355)-Liang,A (2495) Sitges 2016}) 15. Kh2 {[%emt 0:05:49]} Be4 {[%emt 0:01:02]} 16. Bb2 {[%emt 0:04:36]} Rad8 {[%emt 0:04:11]} 17. Rc1 {[%emt 0:02:14]} h6 {[%emt 0:05:27]} 18. Qd2 {[%emt 0:01:44]} Bxg2 {[%emt 0:01:09]} 19. Kxg2 {[%emt 0:00:24]} Qe6 {[%emt 0:01:34]} 20. Rfe1 {[%emt 0:02:38]} Qe4+ {[%emt 0:03:02]} 21. Kh2 {[%emt 0:00:11]} Qf5 {[%emt 0:01:10]} 22. Ng1 {[%emt 0:01:02]} Ndb4 {[%emt 0:05:21]} 23. Rxe8+ {[%emt 0:07:14]} Rxe8 {[%emt 0:00:04]} 24. Rc3 {[%emt 0:04:09]} Rd8 {[%emt 0:09:00]} 25. a3 {[%emt 0:00:56]} Rxd4 {[%emt 0:04:11]} 26. Qe2 {[%emt 0:04:18]} Re4 {[%emt 0:01:16]} 27. Qd2 {[%emt 0:01:53]} Nd5 {[%emt 0:05:42]} 28. Rc5 {[%emt 0:01:06]} Nce7 {[%emt 0:00:04]} 29. Qc2 {[%emt 0:02:47]} Qe6 {[%emt 0:03:36]} 30. Rc4 {[%emt 0:01:27]} Rxc4 {[%emt 0:10:08]} 31. Qxc4 {[%emt 0:00:09]} a6 {[%emt 0:00:26]} 32. Qd4 {[%emt 0:03:42]} f6 {[%emt 0:04:28]} 33. Qd3 {[%emt 0:02:17]} Qf5 {[%emt 0:01:09]} 34. Qe2 {[%emt 0:00:15]} b5 {[%emt 0:00:34]} 35. Nf3 {[%emt 0:00:18]} Kf7 {[%emt 0:03:46]} 36. Nh4 {[%emt 0:03:26]} Qe6 {[%emt 0:01:03]} 37. Qh5+ {[%emt 0:01:39]} Kf8 {[%emt 0:01:07]} 38. Qf3 {[%emt 0:00:32]} g5 {[%emt 0:01:29]} 39. Ng2 {[%emt 0:00:23]} Kg7 {[%emt 0:01:13]} 40. h4 {[%emt 0:03:29]} Qf5 {[%emt 0:01:19]} 41. Qe2 {[%emt 0:30:26]} Ng6 {[%emt 0:30:38]} 42. hxg5 {[%emt 0:01:34]} hxg5 {[%emt 0:00:15]} 43. g4 {[%emt 0:06:56]} Qd7 {[%emt 0:06:00]} 44. Qd2 {[%emt 0:00:33]} Kf7 {[%emt 0:00:00]} 45. Qd4 {[%emt 0:00:00]} Ne5 {[%emt 0:00:00]} 46. Kg3 {[%emt 0:00:00]} Qd6 {[%emt 0:00:00]} 47. Qa7+ {[%emt 0:00:00]} Qc7 {[%emt 0:00:00]} 48. Qxc7+ {[%emt 0:00:00]} Nxc7 {[%emt 0:00:00]} 49. f4 {[%emt 0:00:00]} Nd3 {[%emt 0:00:00]} 50. Bd4 {[%emt 0:00:00]} Ne6 {[%emt 0:00:00]} 51. fxg5 {[%emt 0:00:00]} Nxd4 {[%emt 0:00:00]} 52. gxf6 {[%emt 0:00:00]} Kxf6 {[%emt 0:00:00]} 53. Ne3 {[%emt 0:00:00]} Ke5 {[%emt 0:00:00]} 54. Kh4 {[%emt 0:00:00]} Ke4 {[%emt 0:00:00]} 55. Nd1 {[%emt 0:00:00]} Nc2 {[%emt 0:00:00]} 56. g5 {[%emt 0:00:00]} Kf5 {[%emt 0:00:00]} 57. Kh5 {[%emt 0:00:00]} Ne5 {[%emt 0:00:00]} 58. Kh6 $19 {[%emt 0:00:00]} Nf7+ {[%emt 0:00:00]} 0-1